fUSD/lending_fUSD_20250806
["ID","MTS","AMOUNT","RATE_DAILY","PERIOD"]
[377570480,1754445062479,-517.11,0.00035616,14]
[377570481,1754445062489,-2093.99,0.00035616,14]
[377570482,1754445062498,-2093.99,0.00035616,14]
[377570483,1754445062508,-2093.99,0.00035616,14]
[377570484,1754445062518,-551.25,0.00035616,14]
[377570485,1754445062528,-2093.99,0.00035616,14]
[377570486,1754445062544,-2826.95,0.00035616,14]
[377570487,1754445062553,-2093.99,0.00035616,14]
[377570488,1754445062563,-2093.99,0.00035616,14]
[377570489,1754445062572,-401.55585468,0.00035616,14]
[377570490,1754445062582,-2093.99,0.00035616,14]
[377570491,1754445062591,-2093.99,0.00035616,14]
[377570492,1754445062601,-400.0,0.00035616,14]
[377570493,1754445062610,-2093.99,0.00035616,14]
[377570494,1754445062620,-2093.99,0.00035616,14]
[377570495,1754445062630,-2093.99,0.00035616,14]
[377570496,1754445062639,-400.0,0.00035616,14]
[377570497,1754445062649,-424.14,0.00035616,14]
[377570498,1754445062658,-2093.99,0.00035616,14]
[377570499,1754445062667,-400.0,0.00035616,14]
[377570500,1754445062677,-2448.42,0.00035616,14]
[377570501,1754445062686,-2395.65,0.00035616,14]
[377570502,1754445062696,-982.16,0.00035616,14]
[377570503,1754445062705,-852.19,0.00035616,14]
[377570504,1754445062715,-1402.25,0.00035616,14]
[377570505,1754445062726,-1962.72,0.00035616,14]
[377570506,1754445062735,-400.0,0.00035616,14]
[377570507,1754445062744,-2093.99,0.00035616,14]
[377570508,1754445062754,-1605.08,0.00035616,14]
[377570509,1754445062763,-2093.99,0.00035616,14]
[377570510,1754445062772,-1867.43,0.00035616,14]
[377570511,1754445062784,-2093.99,0.00035616,14]
[377570512,1754445062794,-1463.25,0.00035616,14]
[377570513,1754445062803,-2093.99,0.00035616,14]
[377570514,1754445062813,-2516.23,0.00035616,14]
[377570515,1754445062824,-538.31,0.00035616,14]
[377570516,1754445062836,-2093.99,0.00035616,14]
[377570517,1754445062846,-2093.99,0.00035616,14]
[377570518,1754445062855,-528.34,0.00035616,14]
[377570519,1754445062864,-2093.99,0.00035616,14]
[377570520,1754445062874,-400.0,0.00035616,14]
[377570521,1754445062884,-2093.99,0.00035616,14]
[377570522,1754445062894,-400.0,0.00035616,14]
[377570523,1754445062903,-1761.9,0.00035616,14]
[377570524,1754445062913,-400.0,0.00035616,14]
[377570525,1754445062922,-400.0,0.00035616,14]
[377570526,1754445062932,-400.0,0.00035616,7]
[377570527,1754445062942,-400.0,0.00035616,14]
[377570528,1754445062951,-933.27,0.00035616,14]
[377570529,1754445062961,-2093.99,0.00035616,14]
[377570530,1754445062971,-400.0,0.00035616,14]
[377570531,1754445062981,-400.0,0.00035616,14]
[377570532,1754445062990,-400.0,0.00035616,14]
[377570533,1754445063000,-1388.31,0.00035616,14]
[377570534,1754445063010,-586.88,0.00035616,14]
[377570535,1754445063020,-400.0,0.00035616,14]
[377570536,1754445063030,-1321.37,0.00035616,14]
[377570537,1754445063043,-1276.43,0.00035616,14]
[377570538,1754445063053,-3823.52,0.00035616,14]
[377570539,1754445063064,-2944.88,0.00035616,14]
[377570540,1754445063075,-400.0,0.00035616,14]
[377570541,1754445063084,-2008.43,0.00035616,14]
[377570542,1754445063095,-400.0,0.00035616,14]
[377570543,1754445063105,-434.35,0.00035616,14]
[377570544,1754445063115,-1621.1,0.00035616,14]
[377570545,1754445063125,-400.0,0.00035616,14]
[377570546,1754445063135,-2494.8,0.00035616,14]
[377570547,1754445063145,-2093.99,0.00035616,14]
[377570548,1754445063156,-2093.99,0.00035616,14]
[377570549,1754445063166,-2094.05816254,0.00035616,14]
[377570550,1754445063177,-692.12,0.00035616,14]
[377570551,1754445063188,-1582.0,0.00035616,14]
[377570552,1754445063197,-790.83,0.00035616,14]
[377570553,1754445063208,-623.29,0.00035616,14]
[377570554,1754445063218,-400.0,0.00035616,14]
[377570555,1754445063228,-2061.99,0.00035616,14]
[377570556,1754445063238,-2539.32,0.00035616,14]
[377570557,1754445063248,-2136.46,0.00035616,14]
[377570558,1754445063257,-2851.05,0.00035616,14]
[377570559,1754445063267,-606.74,0.00035616,14]
[377570560,1754445063276,-2048.1,0.00035616,14]
[377570561,1754445063288,-1804.32,0.00035616,14]
[377570562,1754445063298,-400.0,0.00035616,14]
[377570563,1754445063307,-400.0,0.00035616,14]
[377570564,1754445063317,-151.02516086,0.00035653,2]
[377570565,1754445063326,-500.0,0.00035673,5]
[377570566,1754445063336,-576.07294267,0.00035673,5]
[377570567,1754445063346,-501.7773822,0.00035673,5]
[377570568,1754445063356,-500.0,0.00035673,5]
[377570569,1754445063365,-500.0,0.00035673,5]
[377570570,1754445063375,-500.0,0.00035673,5]
[377570571,1754445063385,-500.0,0.00035673,5]
[377570572,1754445063394,-500.0,0.00035673,5]
[377570573,1754445063404,-201.11995177,0.00035673,5]
[377570574,1754445063414,-501.56486229,0.00035673,5]
[377570575,1754445063426,-164.95010177,0.00035673,5]
[377570576,1754445063436,-160.17773201,0.00035673,5]
[377570577,1754445063446,-150.0,0.00035673,3]
[377570578,1754445063456,-500.0,0.00035673,5]
[377570579,1754445063466,-163.24095833,0.00035673,5]
[377570580,1754445063476,-505.5686778,0.00035673,5]
[377570581,1754445063486,-500.0,0.00035673,5]
[377570582,1754445063497,-160.07710206,0.00035673,5]
[377570583,1754445063508,-500.0,0.00035673,5]
[377570584,1754445063517,-500.0,0.00035673,5]
[377570585,1754445063526,-500.0,0.00035673,5]
[377570586,1754445063538,-181.62485859,0.00035673,5]
[377570587,1754445063548,-320.59439764,0.00035673,5]
[377570588,1754445063558,-560.84767821,0.00035673,5]
[377570589,1754445063567,-164.56054511,0.00035673,5]
[377570590,1754445063577,-500.0,0.00035673,5]
[377570591,1754445063586,-501.85832974,0.00035673,5]
[377570592,1754445063597,-500.64294931,0.00035673,5]
[377570593,1754445063606,-161.45859936,0.00035673,5]
[377570594,1754445063616,-509.90631058,0.00035673,5]
[377570595,1754445063626,-500.0,0.00035673,5]
[377570596,1754445063635,-500.0,0.00035673,5]
[377570597,1754445063645,-500.0,0.00035673,5]
[377570598,1754445063654,-500.0,0.00035673,5]
[377570599,1754445063664,-336.00141284,0.00035673,5]
[377570600,1754445063674,-500.0,0.00035673,5]
[377570601,1754445063685,-500.0,0.00035673,5]
[377570602,1754445063695,-247.77628917,0.00035673,5]
[377570603,1754445063705,-559.17003735,0.00035673,5]
[377570604,1754445063714,-500.0,0.00035673,5]
[377570605,1754445063724,-500.0,0.00035673,5]
[377570606,1754445063733,-275.25442196,0.00035673,5]
[377570607,1754445063743,-500.0,0.00035673,5]
[377570608,1754445063752,-500.0,0.00035673,5]
[377570609,1754445063762,-500.0,0.00035673,5]
[377570610,1754445063773,-479.23964202,0.00035673,5]
[377570611,1754445063783,-500.89997475,0.00035673,5]
[377570612,1754445063793,-500.0,0.00035673,5]
[377570613,1754445063803,-519.32016397,0.00035673,5]
[377570614,1754445063985,-500.0,0.00035673,5]
[377570615,1754445063995,-500.0,0.00035673,5]
[377570616,1754445064005,-501.2876779,0.00035673,5]
[377570617,1754445064014,-937.38,0.000357,9]
[377570618,1754445064024,-151.02516086,0.00035721,2]
[377570619,1754445064035,-158.15980875,0.0003579,8]
[377570620,1754445064044,-162.93006405,0.0003579,2]
[377570621,1754445064054,-1280.15113706,0.0003579,2]
[377570622,1754445064064,-151.02516086,0.0003579,2]
[377570623,1754445064074,-1000.0,0.000358,30]
[377570624,1754445064084,-151.02516086,0.00035859,2]
[377570625,1754445064094,-154.43253204,0.00035873,5]
[377570626,1754445064103,-300.0,0.00035889,10]
[377570627,1754445064113,-694.29,0.00035889,14]
[377570628,1754445064123,-694.29,0.00035889,14]
[377570629,1754445064134,-694.29,0.00035889,14]
[377570630,1754445064144,-694.29,0.00035889,14]
[377570631,1754445064155,-694.29,0.00035889,14]
[377570632,1754445064165,-694.29,0.00035889,14]
[377570633,1754445064175,-1406.45,0.00035889,14]
[377570634,1754445064186,-1406.45,0.00035889,14]
[377570635,1754445064196,-1406.45,0.00035889,14]
[377570636,1754445064205,-1406.45,0.00035889,14]
[377570637,1754445064215,-1406.45,0.00035889,14]
[377570638,1754445064225,-1406.45,0.00035889,14]
[377570639,1754445064234,-1406.45,0.00035889,14]
[377570640,1754445064244,-1406.45,0.00035889,14]
[377570641,1754445064254,-1406.45,0.00035889,14]
[377570642,1754445064263,-1406.45,0.00035889,14]
[377570643,1754445064273,-1406.45,0.00035889,14]
[377570644,1754445064284,-1406.45,0.00035889,14]
[377570645,1754445064294,-1406.45,0.00035889,14]
[377570646,1754445064303,-1406.45,0.00035889,14]
[377570647,1754445064312,-1406.45,0.00035889,14]
[377570648,1754445064322,-1406.45,0.00035889,14]
[377570649,1754445064331,-1406.45,0.00035889,14]
[377570650,1754445064340,-1406.45,0.00035889,14]
[377570651,1754445064349,-1406.45,0.00035889,14]
[377570652,1754445064359,-1406.45,0.00035889,14]
[377570653,1754445064368,-1406.45,0.00035889,14]
[377570654,1754445064377,-1406.45,0.00035889,14]
[377570655,1754445064386,-1406.45,0.00035889,14]
[377570656,1754445064395,-1406.53312813,0.00035889,14]
[377570657,1754445064404,-653.57247438,0.00035889,2]
[377570658,1754445064414,-500.0,0.00035889,14]
[377570659,1754445064424,-500.0,0.00035889,14]
[377570660,1754445064433,-211.35407818,0.00035889,14]
[377570661,1754445064443,-151.0,0.00035889,7]
[377570662,1754445064453,-6979.73240107,0.0003589,21]
[377570663,1754445064463,-428.55159656,0.0003589,14]
[377570664,1754445064473,-400.0,0.0003589,14]
[377570665,1754445064482,-400.0,0.0003589,14]
[377570666,1754445064492,-400.0,0.0003589,14]
[377570667,1754445064501,-400.0,0.0003589,14]
[377570668,1754445064512,-367.64019589,0.0003589,14]
[377570669,1754445064521,-400.0,0.0003589,14]
[377570670,1754445064531,-299.26673603,0.0003589,14]
[377570671,1754445064544,-400.0,0.0003589,14]
[377570672,1754445064554,-400.0,0.0003589,14]
[377570673,1754445064564,-400.0,0.0003589,14]
[377570674,1754445064573,-400.0,0.0003589,14]
[377570675,1754445064582,-400.0,0.0003589,14]
[377570676,1754445064592,-400.0,0.0003589,14]
[377570677,1754445064601,-400.0,0.0003589,14]
[377570678,1754445064611,-151.0,0.0003589,7]
[377570679,1754445064620,-475.17437434,0.0003589,14]
[377570680,1754445064630,-163.727011,0.0003589,7]
[377570681,1754445064640,-400.0,0.0003589,14]
[377570682,1754445064650,-400.0,0.0003589,14]
[377570683,1754445064659,-400.0,0.0003589,14]
[377570684,1754445064669,-400.0,0.0003589,14]
[377570685,1754445064678,-400.0,0.0003589,14]
[377570686,1754445064688,-400.0,0.0003589,14]
[377570687,1754445064697,-400.0,0.0003589,14]
[377570688,1754445064706,-400.0,0.0003589,14]
[377570689,1754445064716,-400.0,0.0003589,14]
[377570690,1754445064726,-400.0,0.0003589,14]
[377570691,1754445064735,-351.79705418,0.0003589,14]
[377570692,1754445064746,-400.0,0.0003589,14]
[377570693,1754445064756,-400.0,0.0003589,14]
[377570694,1754445064766,-400.0,0.0003589,2]
[377570695,1754445064775,-400.0,0.0003589,14]
[377570696,1754445064786,-400.0,0.0003589,14]
[377570697,1754445064797,-400.0,0.0003589,14]
[377570698,1754445064806,-199.155498,0.0003589,7]
[377570699,1754445064819,-400.0,0.0003589,14]
[377570700,1754445064828,-428.777142,0.0003589,7]
[377570701,1754445064838,-428.777142,0.0003589,7]
[377570702,1754445064847,-400.0,0.0003589,14]
[377570703,1754445064856,-428.777142,0.0003589,7]
[377570704,1754445064867,-428.777142,0.0003589,7]
[377570705,1754445064876,-400.0,0.0003589,14]
[377570706,1754445064886,-400.0,0.0003589,14]
[377570707,1754445064895,-400.0,0.0003589,14]
[377570708,1754445064906,-1093.16,0.0003589,14]
[377570709,1754445064916,-800.2,0.0003589,14]
[377570710,1754445064926,-334.79011894,0.0003589,14]
[377570711,1754445064936,-400.0,0.0003589,14]
[377570712,1754445064946,-400.0,0.0003589,14]
[377570713,1754445064955,-549.39,0.0003589,14]
[377570714,1754445064964,-1040.46,0.0003589,14]
[377570715,1754445064974,-400.0,0.0003589,14]
[377570716,1754445064983,-618.77,0.0003589,14]
[377570717,1754445064993,-400.0,0.0003589,14]
[377570718,1754445065002,-400.0,0.0003589,14]
[377570719,1754445065011,-1828.13,0.0003589,14]
[377570720,1754445065021,-463.3,0.0003589,14]
[377570721,1754445065030,-400.0,0.0003589,14]
[377570722,1754445065040,-400.0,0.0003589,14]
[377570723,1754445065050,-400.0,0.0003589,14]
[377570724,1754445065060,-2382.06,0.0003589,14]
[377570725,1754445065070,-400.0,0.0003589,14]
[377570726,1754445065079,-400.0,0.0003589,14]
[377570727,1754445065088,-400.0,0.0003589,14]
[377570728,1754445065098,-400.0,0.0003589,14]
[377570729,1754445065107,-1551.34,0.0003589,14]
[377570730,1754445065116,-1555.79,0.0003589,14]
[377570731,1754445065125,-1562.0,0.0003589,14]
[377570732,1754445065134,-400.0,0.0003589,14]
[377570733,1754445065144,-400.0,0.0003589,14]
[377570734,1754445065153,-1037.33,0.0003589,14]
[377570735,1754445065163,-400.0,0.0003589,5]
[377570736,1754445065173,-607.17,0.0003589,14]
[377570737,1754445065182,-400.0,0.0003589,14]
[377570738,1754445065191,-400.0,0.0003589,14]
[377570739,1754445065200,-400.0,0.0003589,14]
[377570740,1754445065210,-400.0,0.0003589,14]
[377570741,1754445065221,-400.0,0.0003589,14]
[377570742,1754445065230,-400.0,0.0003589,14]
[377570743,1754445065240,-671.19,0.0003589,14]
[377570744,1754445065252,-400.0,0.0003589,14]
[377570745,1754445065264,-538.42,0.0003589,14]
[377570746,1754445065273,-1423.6,0.0003589,14]
[377570747,1754445065283,-401.37114177,0.0003589,14]
[377570748,1754445065292,-400.0,0.0003589,14]
[377570749,1754445065302,-642.19,0.0003589,14]
[377570750,1754445065311,-465.3,0.0003589,14]
[377570751,1754445065321,-400.0,0.0003589,14]
[377570752,1754445065330,-400.0,0.0003589,14]
[377570753,1754445065339,-400.0,0.0003589,14]
[377570754,1754445065348,-817.53,0.0003589,14]
[377570755,1754445065358,-407.81,0.0003589,14]
[377570756,1754445065367,-400.0,0.0003589,14]
[377570757,1754445065376,-400.0,0.0003589,14]
[377570758,1754445065386,-400.0,0.0003589,14]
[377570759,1754445065396,-400.0,0.0003589,2]
[377570760,1754445065405,-507.16,0.0003589,14]
[377570761,1754445065415,-400.0,0.0003589,14]
[377570762,1754445065424,-400.0,0.0003589,14]
[377570763,1754445065434,-482.44,0.0003589,14]
[377570764,1754445065443,-400.0,0.0003589,14]
[377570765,1754445065452,-400.0,0.0003589,14]
[377570766,1754445065462,-556.12,0.0003589,14]
[377570767,1754445065471,-400.0,0.0003589,14]
[377570768,1754445065480,-554.87,0.0003589,14]
[377570769,1754445065489,-400.0,0.0003589,14]
[377570770,1754445065499,-400.0,0.0003589,14]
[377570771,1754445065508,-400.0,0.0003589,14]
[377570772,1754445065517,-400.0,0.0003589,14]
[377570773,1754445065526,-400.0,0.0003589,14]
[377570774,1754445065536,-400.0,0.0003589,14]
[377570775,1754445065545,-400.0,0.0003589,14]
[377570776,1754445065554,-400.0,0.0003589,14]
[377570777,1754445065563,-400.0,0.0003589,14]
[377570778,1754445065573,-400.0,0.0003589,14]
[377570779,1754445065582,-1341.76,0.0003589,14]
[377570780,1754445065591,-776.19,0.0003589,14]
[377570781,1754445065600,-400.0,0.0003589,14]
[377570782,1754445065610,-402.46574624,0.0003589,14]
[377570783,1754445065619,-400.0,0.0003589,14]
[377570784,1754445065628,-470.14,0.0003589,14]
[377570785,1754445065637,-400.0,0.0003589,14]
[377570786,1754445065646,-503.59289239,0.0003589,14]
[377570787,1754445065655,-400.0,0.0003589,14]
[377570788,1754445065664,-1323.57,0.0003589,14]
[377570789,1754445065673,-421.28547919,0.0003589,14]
[377570790,1754445065682,-400.0,0.0003589,14]
[377570791,1754445065692,-401.63859013,0.0003589,14]
[377570792,1754445065701,-1503.27,0.0003589,14]
[377570793,1754445065710,-400.0,0.0003589,14]
[377570794,1754445065719,-1141.48,0.0003589,14]
[377570795,1754445065728,-1119.61,0.0003589,14]
[377570796,1754445065737,-1078.09,0.0003589,14]
[377570797,1754445065746,-400.0,0.0003589,14]
[377570798,1754445065755,-1449.51,0.0003589,14]
[377570799,1754445065764,-400.0,0.0003589,14]
[377570800,1754445065773,-400.0,0.0003589,14]
[377570801,1754445065782,-317.13121318,0.0003589,14]
[377570802,1754445065792,-400.0,0.0003589,14]
[377570803,1754445065802,-400.0,0.0003589,14]
[377570804,1754445065811,-400.0,0.0003589,14]
[377570805,1754445065821,-400.0,0.0003589,14]
[377570806,1754445065833,-400.0,0.0003589,14]
[377570807,1754445065842,-1713.36,0.0003589,14]
[377570808,1754445065851,-589.39,0.0003589,14]
[377570809,1754445065860,-375.56005845,0.0003589,14]
[377570810,1754445065870,-904.53,0.0003589,14]
[377570811,1754445065879,-2898.63,0.0003589,14]
[377570812,1754445065889,-400.0,0.0003589,14]
[377570813,1754445065898,-400.0,0.0003589,14]
[377570814,1754445065908,-466.59,0.0003589,14]
[377570815,1754445065919,-400.0,0.0003589,14]
[377570816,1754445065929,-400.0,0.0003589,14]
[377570817,1754445065938,-400.0,0.0003589,14]
[377570818,1754445065947,-400.0,0.0003589,14]
[377570819,1754445065958,-1559.97,0.0003589,14]
[377570820,1754445065967,-1845.55,0.0003589,14]
[377570821,1754445065976,-2002.24,0.0003589,14]
[377570822,1754445065985,-2734.57,0.0003589,14]
[377570823,1754445065995,-400.0,0.0003589,14]
[377570824,1754445066004,-424.18,0.0003589,14]
[377570825,1754445066013,-521.33,0.0003589,14]
[377570826,1754445066023,-837.62,0.0003589,14]
[377570827,1754445066034,-400.0,0.0003589,14]
[377570828,1754445066043,-400.0,0.0003589,14]
[377570829,1754445066053,-400.0,0.0003589,14]
[377570830,1754445066062,-400.0,0.0003589,14]
[377570831,1754445066073,-400.0,0.0003589,14]
[377570832,1754445066082,-710.32,0.0003589,14]
[377570833,1754445066097,-400.0,0.0003589,14]
[377570834,1754445066115,-1501.67,0.0003589,14]
[377570835,1754445066125,-400.0,0.0003589,14]
[377570836,1754445066134,-1946.53,0.0003589,14]
[377570837,1754445066143,-400.0,0.0003589,14]
[377570838,1754445066153,-917.13,0.0003589,14]
[377570839,1754445066163,-400.0,0.0003589,14]
[377570840,1754445066172,-400.0,0.0003589,14]
[377570841,1754445066185,-400.0,0.0003589,14]
[377570842,1754445066195,-400.0,0.0003589,14]
[377570843,1754445066204,-400.0,0.0003589,14]
[377570844,1754445066213,-400.0,0.0003589,14]
[377570845,1754445066223,-2201.64,0.0003589,14]
[377570846,1754445066233,-400.0,0.0003589,14]
[377570847,1754445066242,-789.36,0.0003589,14]
[377570848,1754445066252,-400.0,0.0003589,14]
[377570849,1754445066261,-1035.11,0.0003589,14]
[377570850,1754445066271,-400.0,0.0003589,14]
[377570851,1754445066280,-400.0,0.0003589,14]
[377570852,1754445066290,-400.0,0.0003589,14]
[377570853,1754445066299,-400.0,0.0003589,14]
[377570854,1754445066308,-400.0,0.0003589,14]
[377570855,1754445066318,-651.23,0.0003589,14]
[377570856,1754445066327,-400.0,0.0003589,14]
[377570857,1754445066336,-2099.0,0.0003589,14]
[377570858,1754445066345,-400.0,0.0003589,14]
[377570859,1754445066354,-592.11,0.0003589,14]
[377570860,1754445066364,-422.23,0.0003589,14]
[377570861,1754445066373,-400.0,0.0003589,14]
[377570862,1754445066382,-400.0,0.0003589,14]
[377570863,1754445066391,-400.0,0.0003589,14]
[377570864,1754445066400,-400.0,0.0003589,14]
[377570865,1754445066409,-400.0,0.0003589,14]
[377570866,1754445066418,-1646.02,0.0003589,14]
[377570867,1754445066430,-1797.61,0.0003589,14]
[377570868,1754445066440,-1194.38,0.0003589,14]
[377570869,1754445066451,-400.0,0.0003589,14]
[377570870,1754445066462,-896.94,0.0003589,14]
[377570871,1754445066471,-701.55,0.0003589,14]
[377570872,1754445066481,-1788.93,0.0003589,14]
[377570873,1754445066491,-400.0,0.0003589,14]
[377570874,1754445066500,-400.0,0.0003589,14]
[377570875,1754445066509,-768.55,0.0003589,14]
[377570876,1754445066518,-400.0,0.0003589,14]
[377570877,1754445066528,-1062.63,0.0003589,14]
[377570878,1754445066538,-985.9,0.0003589,14]
[377570879,1754445066547,-947.7,0.0003589,14]
[377570880,1754445066556,-400.0,0.0003589,14]
[377570881,1754445066565,-1163.17,0.0003589,14]
[377570882,1754445066574,-1794.14,0.0003589,14]
[377570883,1754445066583,-400.0,0.0003589,14]
[377570884,1754445066592,-739.15,0.0003589,14]
[377570885,1754445066601,-400.0,0.0003589,14]
[377570886,1754445066611,-1094.35,0.0003589,14]
[377570887,1754445066620,-1344.81,0.0003589,14]
[377570888,1754445066629,-400.0,0.0003589,14]
[377570889,1754445066638,-446.26,0.0003589,14]
[377570890,1754445066648,-405.78,0.0003589,14]
[377570891,1754445066657,-967.91,0.0003589,14]
[377570892,1754445066666,-400.0,0.0003589,14]
[377570893,1754445066675,-1173.64,0.0003589,14]
[377570894,1754445066685,-2109.91,0.0003589,14]
[377570895,1754445066694,-2203.77,0.0003589,14]
[377570896,1754445066703,-811.64,0.0003589,14]
[377570897,1754445066713,-400.0,0.0003589,14]
[377570898,1754445066722,-402.26530914,0.0003589,14]
[377570899,1754445066732,-400.0,0.0003589,14]
[377570900,1754445066741,-400.0,0.0003589,14]
[377570901,1754445066751,-400.0,0.0003589,14]
[377570902,1754445066760,-400.0,0.0003589,14]
[377570903,1754445066770,-400.0,0.0003589,14]
[377570904,1754445066780,-400.0,0.0003589,14]
[377570905,1754445066793,-400.0,0.0003589,14]
[377570906,1754445066803,-400.0,0.0003589,14]
[377570907,1754445066813,-400.0,0.0003589,14]
[377570908,1754445066826,-400.0,0.0003589,14]
[377570909,1754445066835,-469.16,0.0003589,14]
[377570910,1754445066845,-400.0,0.0003589,14]
[377570911,1754445066854,-923.75,0.0003589,14]
[377570912,1754445066865,-400.0,0.0003589,14]
[377570913,1754445066875,-400.0,0.0003589,14]
[377570914,1754445066884,-400.0,0.0003589,14]
[377570915,1754445066895,-554.71,0.0003589,14]
[377570916,1754445066905,-604.15,0.0003589,14]
[377570917,1754445066914,-494.91,0.0003589,14]
[377570918,1754445066923,-400.0,0.0003589,14]
[377570919,1754445066932,-400.0,0.0003589,14]
[377570920,1754445066942,-666.51,0.0003589,14]
[377570921,1754445066951,-400.0,0.0003589,14]
[377570922,1754445066962,-400.0,0.0003589,14]
[377570923,1754445066972,-400.0,0.0003589,14]
[377570924,1754445066983,-1810.36,0.0003589,14]
[377570925,1754445066994,-400.0,0.0003589,14]
[377570926,1754445067003,-937.59,0.0003589,14]
[377570927,1754445067013,-400.0,0.0003589,14]
[377570928,1754445067022,-1765.04,0.0003589,14]
[377570929,1754445067032,-400.0,0.0003589,14]
[377570930,1754445067043,-662.56,0.0003589,14]
[377570931,1754445067052,-400.0,0.0003589,14]
[377570932,1754445067061,-1884.93,0.0003589,14]
[377570933,1754445067071,-2173.18,0.0003589,14]
[377570934,1754445067080,-426.54,0.0003589,14]
[377570935,1754445067090,-400.0,0.0003589,14]
[377570936,1754445067099,-400.0,0.0003589,14]
[377570937,1754445067109,-400.0,0.0003589,14]
[377570938,1754445067119,-1051.98,0.0003589,14]
[377570939,1754445067128,-400.0,0.0003589,14]
[377570940,1754445067137,-400.0,0.0003589,14]
[377570941,1754445067147,-638.49,0.0003589,14]
[377570942,1754445067156,-400.0,0.0003589,7]
[377570943,1754445067166,-400.0,0.0003589,14]
[377570944,1754445067175,-400.0,0.0003589,14]
[377570945,1754445067190,-505.05,0.0003589,14]
[377570946,1754445067203,-400.0,0.0003589,14]
[377570947,1754445067213,-407.22428979,0.0003589,14]
[377570948,1754445067223,-823.45,0.0003589,14]
[377570949,1754445067234,-1186.37,0.0003589,14]
[377570950,1754445067245,-400.0,0.0003589,14]
[377570951,1754445067255,-885.84,0.0003589,14]
[377570952,1754445067266,-716.14,0.0003589,14]
[377570953,1754445067276,-1446.43,0.0003589,14]
[377570954,1754445067286,-992.97,0.0003589,14]
[377570955,1754445067295,-400.0,0.0003589,14]
[377570956,1754445067305,-1008.6,0.0003589,14]
[377570957,1754445067315,-400.0,0.0003589,14]
[377570958,1754445067325,-400.0,0.0003589,14]
[377570959,1754445067335,-400.0,0.0003589,14]
[377570960,1754445067344,-1537.35,0.0003589,14]
[377570961,1754445067354,-763.76,0.0003589,14]
[377570962,1754445067364,-594.52,0.0003589,14]
[377570963,1754445067374,-620.62,0.0003589,14]
[377570964,1754445067383,-400.0,0.0003589,14]
[377570965,1754445067393,-2033.15,0.0003589,14]
[377570966,1754445067403,-607.47,0.0003589,14]
[377570967,1754445067413,-400.0,0.0003589,14]
[377570968,1754445067423,-400.0,0.0003589,14]
[377570969,1754445067433,-475.13,0.0003589,14]
[377570970,1754445067444,-1085.12,0.0003589,14]
[377570971,1754445067454,-400.0,0.0003589,14]
[377570972,1754445067464,-1246.56,0.0003589,14]
[377570973,1754445067473,-1188.02,0.0003589,14]
[377570974,1754445067483,-400.0,0.0003589,14]
[377570975,1754445067492,-1141.08,0.0003589,14]
[377570976,1754445067502,-860.58,0.0003589,14]
[377570977,1754445067511,-2113.04,0.0003589,14]
[377570978,1754445067520,-1843.9,0.0003589,14]
[377570979,1754445067530,-400.0,0.0003589,14]